fUSD/lending_fUSD_20260107
["ID","MTS","AMOUNT","RATE_DAILY","PERIOD"]
[400709953,1767786647763,-658.5,0.00035616,42]
[400709955,1767786647773,-484.98643212,0.00035616,7]
[400709957,1767786647783,-500.0,0.00035616,7]
[400709959,1767786647792,-500.0,0.00035616,7]
[400709961,1767786647802,-640.59735601,0.00035616,7]
[400709963,1767786647812,-500.0,0.00035616,7]
[400709966,1767786647823,-500.0,0.00035616,7]
[400709968,1767786647835,-289.90612282,0.00035616,7]
[400709970,1767786647844,-187.27,0.00035616,2]
[400709972,1767786647855,-208.94591548,0.00035616,2]
[400709974,1767786647867,-152.0,0.00035649,6]
[400709976,1767786647876,-785.08,0.000357,30]
[400709978,1767786647886,-150.0,0.00035706,2]
[400709980,1767786647895,-150.0,0.00035706,2]
[400709982,1767786647905,-150.0,0.00035706,2]
[400709984,1767786647915,-150.0,0.00035706,2]
[400709986,1767786647924,-150.0,0.00035706,2]
[400709988,1767786647934,-150.0,0.00035706,2]
[400709990,1767786647945,-150.0,0.00035706,2]
[400709992,1767786647954,-150.0,0.00035706,2]
[400709994,1767786647964,-150.0,0.00035706,2]
[400709996,1767786647973,-150.0,0.00035706,2]
[400709999,1767786647983,-150.0,0.00035706,2]
[400710000,1767786647996,-150.0,0.00035706,2]
[400710002,1767786648005,-1688.95959214,0.00035848,5]
[400710004,1767786648015,-30759.29733124,0.00035848,5]
[400710006,1767786648025,-710.22742,0.00035888,30]
[400710008,1767786648034,-719.64937765,0.000359,120]
[400710010,1767786648043,-695.82,0.000359,14]
[400710013,1767786648061,-229.4899853,0.000359,30]
[400710016,1767786648072,-1000.0,0.000359,7]
[400710018,1767786648082,-500.01,0.00036,30]
[400710020,1767786648093,-200.0,0.00036,120]
[400710022,1767786648103,-655.5,0.00036049,30]
[400710024,1767786648113,-710.22742,0.00036088,30]
[400710026,1767786648124,-16961.71629951,0.00036101,2]
[400710028,1767786648134,-505.0,0.00036137,2]
[400710030,1767786648144,-508.0,0.00036142,9]
[400710032,1767786648154,-171.0,0.00036247,30]
[400710034,1767786648164,-710.22742,0.00036288,30]
[400710036,1767786648173,-927.37,0.000363,14]
[400710038,1767786648187,-152.0,0.0003631,7]
[400710040,1767786648196,-785.08,0.000364,30]
[400710042,1767786648206,-695.82,0.000364,14]
[400710045,1767786648216,-710.22742,0.00036488,30]
[400710047,1767786648227,-160.0,0.000365,17]
[400710049,1767786648236,-160.0,0.000365,17]
[400710051,1767786648246,-1000.0,0.000365,7]
[400710052,1767786648256,-179.04,0.0003651,2]
[400710055,1767786648265,-150.0,0.0003651,2]
[400710057,1767786648276,-150.0,0.0003651,2]
[400710059,1767786648285,-179.04,0.0003651,2]
[400710061,1767786648295,-150.0,0.0003651,2]
[400710063,1767786648304,-150.0,0.0003651,2]
[400710065,1767786648314,-177.5,0.0003651,2]
[400710067,1767786648323,-1032.51,0.000366,14]
[400710069,1767786648333,-1000.0,0.00036626,14]
[400710071,1767786648343,-710.22742,0.00036688,30]
[400710073,1767786648353,-500.01,0.0003672,30]
[400710075,1767786648363,-3467.0,0.00036778,2]
[400710077,1767786648374,-614.0,0.00036778,2]
[400710079,1767786648384,-1330.0,0.00036778,2]
[400710082,1767786648394,-505.0,0.00036778,2]
[400710084,1767786648404,-1266.0,0.00036778,2]
[400710086,1767786648414,-1201.0,0.00036778,2]
[400710088,1767786648424,-150.0,0.00036778,2]
[400710090,1767786648434,-6551.0,0.00036778,2]
[400710092,1767786648448,-2436.0,0.00036778,2]
[400710095,1767786648458,-1000.0,0.000368,7]
[400710097,1767786648469,-710.22742,0.00036888,30]
[400710099,1767786648478,-2367.4247,0.00036888,7]
[400710101,1767786648488,-225.0,0.0003689,30]
[400710103,1767786648499,-3474.93900203,0.00036896,2]
[400710105,1767786648509,-927.37,0.000369,14]
[400710107,1767786648519,-695.82,0.000369,14]
[400710109,1767786648529,-1000.0,0.000369,14]
[400710135,1767786648767,-152.0,0.00036971,8]
[400710137,1767786648778,-11496.27213743,0.00036999,2]
[400710139,1767786648787,-73175.66554277,0.00037,7]
[400710141,1767786648796,-359.75091427,0.00037,4]
[400710143,1767786648806,-719.64937765,0.00037,120]
[400710146,1767786648815,-1071.92,0.00037,14]
[400710147,1767786648825,-23882.22,0.00037,2]
[400710150,1767786648835,-508.0,0.00037037,10]
[400710152,1767786648844,-292.06380778,0.00037052,2]
[400710154,1767786648854,-710.22742,0.00037088,30]
[400710156,1767786648864,-785.08,0.000371,30]
[400710158,1767786648873,-500.0,0.000371,45]
[400710160,1767786648882,-1000.0,0.000371,7]
[400710162,1767786648892,-500.0,0.0003715,45]
[400710164,1767786648902,-1000.0,0.00037174,14]
[400710166,1767786648912,-500.0,0.000372,45]
[400710168,1767786648922,-1071.92,0.000372,14]
[400710170,1767786648932,-221.13408839,0.000372,120]
[400710172,1767786648942,-500.0,0.0003725,45]
[400710174,1767786648952,-710.22742,0.00037288,30]
[400710176,1767786648962,-500.0,0.000373,45]
[400710178,1767786648972,-500.0,0.0003735,45]
[400710181,1767786648982,-215.7,0.00037366,5]
[400710182,1767786648992,-695.82,0.000374,14]
[400710183,1767786649001,-526.0,0.000374,45]
[400710184,1767786649012,-1071.92,0.000374,14]
[400710185,1767786649022,-1000.0,0.000374,7]
[400710186,1767786649033,-500.01,0.0003744,30]
[400710187,1767786649043,-1000.0,0.00037448,14]
[400710188,1767786649053,-540.0,0.0003745,30]
[400710189,1767786649063,-710.22742,0.00037488,30]
[400710190,1767786649073,-160.0,0.000375,22]
[400710191,1767786649083,-160.0,0.000375,22]
[400710192,1767786649092,-152.0,0.00037631,9]
[400710193,1767786649102,-710.22742,0.00037688,30]
[400710195,1767786649112,-1071.92,0.000377,14]
[400710197,1767786649123,-839.56,0.000377,14]
[400710200,1767786649137,-23882.22,0.000377,2]
[400710202,1767786649148,-1996.68,0.000377,30]
[400710204,1767786649157,-1000.0,0.000377,7]
[400710206,1767786649167,-1000.0,0.00037722,14]
[400710208,1767786649177,-6991.88903416,0.00037727,2]
[400710210,1767786649189,-785.08,0.000378,30]
[400710212,1767786649199,-1032.51,0.000378,14]
[400710214,1767786649209,-249.063448,0.000378,15]
[400710216,1767786649219,-710.22742,0.00037888,30]
[400710219,1767786649230,-515.93,0.00037894,7]
[400710221,1767786649240,-500.0,0.00037894,7]
[400710223,1767786649250,-500.0,0.00037894,7]
[400710225,1767786649262,-474.48,0.00037894,7]
[400710227,1767786649271,-695.82,0.000379,14]
[400710229,1767786649281,-3874.40622203,0.000379,4]
[400710525,1767786652159,-151.0,0.00018541,2]
[400710527,1767786652169,-125.52359267,0.00018541,2]
[400710530,1767786652180,-25.47640733,0.00018541,2]
[400710532,1767786652194,-251.47201343,0.00033778,2]
[400710534,1767786652206,-316.6585996,0.00033778,2]
[400710536,1767786652217,-2.73838697,0.00033778,2]
[400710538,1767786652228,-954.05,0.00033907,2]
[400710540,1767786652239,-565.0,0.00036778,2]
[400710542,1767786652248,-3946.20111417,0.000379,4]
[400710561,1767786652429,-6468.82686994,0.000379,4]
[400710563,1767786652438,-508.0,0.00037932,11]
[400710565,1767786652448,-1000.0,0.00037948,120]
[400710567,1767786652458,-1208.0,0.00037996,14]
[400710569,1767786652467,-160.0,0.00038,24]
[400710571,1767786652476,-160.0,0.00038,24]
[400710573,1767786652485,-288.8,0.00038,24]
[400710575,1767786652494,-219.49296091,0.00038,120]
[400710577,1767786652503,-500.0,0.00038,120]
[400710579,1767786652512,-1000.0,0.00038,120]
[400710581,1767786652522,-839.56,0.00038,14]
[400710583,1767786652531,-150.0,0.00038,2]
[400710585,1767786652540,-1000.0,0.00038,7]
[400710587,1767786652549,-1021.93819227,0.00038,7]
[400710589,1767786652559,-1348.46498127,0.00038055,30]
[400710591,1767786652570,-710.22742,0.00038088,30]
[400710593,1767786652581,-500.01,0.0003816,30]
[400710595,1767786652591,-1348.46498127,0.00038192,30]
[400710597,1767786652601,-440.0,0.00038206,30]
[400710599,1767786652610,-172.37166358,0.00038256,2]
[400710601,1767786652620,-172.37166358,0.00038256,2]
[400710603,1767786652629,-517.11499075,0.00038256,2]
[400710605,1767786652639,-279.41351744,0.00038256,2]
[400710607,1767786652648,-4300.31017212,0.00038256,2]
[400710609,1767786652658,-351.50612945,0.00038256,2]
[400710611,1767786652667,-1668.58744379,0.00038256,2]
[400710614,1767786652677,-201.99613239,0.00038256,7]
[400710616,1767786652686,-3474.93900203,0.00038261,2]
[400710617,1767786652696,-710.22742,0.00038288,30]
[400710619,1767786652705,-152.0,0.00038292,10]
[400710622,1767786652719,-256.13361492,0.000383,30]
[400710624,1767786652728,-1000.0,0.000383,7]
[400710626,1767786652737,-310.0,0.00038329,120]
[400710628,1767786652746,-833.0,0.00038344,11]
[400710630,1767786652755,-495.32671846,0.00038346,2]
[400710632,1767786652765,-151.0,0.00038353,14]
[400710634,1767786652774,-863.0,0.00038356,120]
[400710636,1767786652783,-1325.44502581,0.00038356,14]
[400710638,1767786652793,-3091.317547,0.00038356,30]
[400710640,1767786652804,-1111.83,0.00038356,14]
[400710642,1767786652813,-1000.0,0.00038356,2]
[400710644,1767786652822,-500.0,0.00038356,14]
[400710646,1767786652832,-500.0,0.00038356,14]
[400710648,1767786652840,-500.0,0.00038356,14]
[400710650,1767786652850,-518.63441108,0.00038356,14]
[400710652,1767786652859,-447.68727968,0.00038356,14]
[400710654,1767786652872,-461.85723905,0.00038356,14]
[400710656,1767786652881,-550.68999048,0.00038356,14]
[400710658,1767786652891,-627.52290504,0.00038356,14]
[400710660,1767786652900,-503.51062736,0.00038356,14]
[400710663,1767786652912,-500.0,0.00038356,14]
[400710665,1767786652922,-500.0,0.00038356,14]
[400710667,1767786652931,-500.0,0.00038356,14]
[400710669,1767786652941,-500.0,0.00038356,14]
[400710671,1767786652950,-501.32423715,0.00038356,14]
[400710673,1767786652960,-500.0,0.00038356,14]
[400710675,1767786652969,-500.0,0.00038356,14]
[400710677,1767786652979,-541.77213606,0.00038356,14]
[400710679,1767786652989,-533.67761244,0.00038356,14]
[400710681,1767786652998,-500.0,0.00038356,14]
[400710683,1767786653009,-426.0394859,0.00038356,14]
[400710685,1767786653021,-623.49928662,0.00038356,14]
[400710687,1767786653031,-530.44210247,0.00038356,14]
[400710689,1767786653041,-500.0,0.00038356,14]
[400710692,1767786653051,-500.0,0.00038356,14]
[400710694,1767786653062,-500.0,0.00038356,14]
[400710696,1767786653071,-500.0,0.00038356,14]
[400710698,1767786653081,-500.0,0.00038356,14]
[400710700,1767786653090,-642.43301376,0.00038356,14]
[400710702,1767786653100,-500.0,0.00038356,14]
[400710704,1767786653111,-500.0,0.00038356,14]
[400710705,1767786653121,-500.0,0.00038356,14]
[400710708,1767786653131,-500.0,0.00038356,14]
[400710710,1767786653141,-500.0,0.00038356,14]
[400710711,1767786653151,-500.0,0.00038356,14]
[400710714,1767786653161,-522.07745827,0.00038356,14]
[400710716,1767786653172,-500.0,0.00038356,14]
[400710726,1767786653267,-500.0,0.00038356,14]
[400710728,1767786653277,-354.61088621,0.00038356,14]
[400710730,1767786653287,-500.0,0.00038356,15]
[400710732,1767786653296,-490.90550265,0.00038356,14]
[400710733,1767786653306,-500.0,0.00038356,14]
[400710734,1767786653316,-500.0,0.00038356,14]
[400710735,1767786653325,-500.0,0.00038356,14]
[400710736,1767786653340,-500.0,0.00038356,14]
[400710737,1767786653361,-500.0,0.00038356,14]
[400710738,1767786653381,-500.0,0.00038356,14]
[400710739,1767786653390,-500.0,0.00038356,14]
[400710740,1767786653400,-506.7297603,0.00038356,14]
[400710742,1767786653409,-500.0,0.00038356,14]
[400710743,1767786653419,-500.0,0.00038356,14]
[400710745,1767786653428,-1597.35,0.00038356,14]
[400710747,1767786653438,-500.0,0.00038356,14]
[400710749,1767786653447,-219.35870394,0.00038356,14]
[400710751,1767786653456,-297.17280182,0.00038356,14]
[400710753,1767786653466,-500.0,0.00038356,14]
[400710755,1767786653476,-500.0,0.00038356,14]
[400710757,1767786653488,-530.19861867,0.00038356,14]
[400710759,1767786653499,-500.0,0.00038356,14]
[400710761,1767786653508,-500.0,0.00038356,14]
[400710763,1767786653518,-500.0,0.00038356,14]
[400710765,1767786653528,-500.0,0.00038356,14]
[400710767,1767786653539,-500.0,0.00038356,2]
[400710769,1767786653549,-500.0,0.00038356,14]
[400710771,1767786653559,-1347.61,0.00038356,14]
[400710773,1767786653570,-500.0,0.00038356,14]
[400710775,1767786653581,-500.0,0.00038356,14]
[400710777,1767786653591,-500.0,0.00038356,14]
[400710780,1767786653601,-2497.76,0.00038356,14]
[400710782,1767786653613,-1248.91,0.00038356,14]
[400710783,1767786653623,-500.0,0.00038356,14]
[400710785,1767786653633,-500.0,0.00038356,14]
[400710787,1767786653644,-500.0,0.00038356,14]
[400710789,1767786653654,-570.67,0.00038356,14]
[400710791,1767786653664,-2821.35,0.00038356,14]
[400710794,1767786653674,-543.39,0.00038356,14]
[400710796,1767786653684,-500.0,0.00038356,14]
[400710797,1767786653693,-500.0,0.00038356,14]
[400710799,1767786653703,-544.1,0.00038356,14]
[400710802,1767786653713,-500.0,0.00038356,14]
[400710803,1767786653723,-1806.99,0.00038356,14]
[400710806,1767786653732,-500.0,0.00038356,14]
[400710807,1767786653742,-500.0,0.00038356,14]
[400710809,1767786653751,-500.0,0.00038356,14]
[400710811,1767786653761,-542.685375,0.00038356,14]
[400710813,1767786653771,-500.0,0.00038356,14]
[400710815,1767786653780,-500.0,0.00038356,14]
[400710817,1767786653789,-500.0,0.00038356,14]
[400710819,1767786653799,-500.0,0.00038356,14]
[400710821,1767786653808,-500.0,0.00038356,14]
[400710823,1767786653817,-632.30871023,0.00038356,14]
[400710826,1767786653827,-500.0,0.00038356,14]
[400710828,1767786653836,-500.0,0.00038356,14]
[400710830,1767786653846,-500.0,0.00038356,14]
[400710832,1767786653855,-500.0,0.00038356,12]
[400710834,1767786653864,-500.0,0.00038356,14]
[400710835,1767786653873,-500.0,0.00038356,14]
[400710837,1767786653883,-500.0,0.00038356,14]
[400710840,1767786653893,-1302.45,0.00038356,14]
[400710841,1767786653903,-500.0,0.00038356,14]
[400710843,1767786653912,-500.0,0.00038356,14]
[400710846,1767786653924,-500.0,0.00038356,14]
[400710848,1767786653933,-500.0,0.00038356,14]
[400710849,1767786653943,-576.89104572,0.00038356,14]
[400710851,1767786653952,-471.28585763,0.00038356,14]
[400710853,1767786653962,-500.0,0.00038356,14]
[400710855,1767786653972,-754.5,0.00038356,14]
[400710857,1767786653983,-564.7285668,0.00038356,14]
[400710859,1767786653993,-518.77195929,0.00038356,14]
[400710861,1767786654003,-500.0,0.00038356,7]
[400710864,1767786654014,-500.0,0.00038356,14]
[400710865,1767786654024,-700.32,0.00038356,14]
[400710868,1767786654035,-500.0,0.00038356,14]
[400710869,1767786654044,-642.09,0.00038356,14]
[400710872,1767786654054,-500.0,0.00038356,14]
[400710873,1767786654065,-500.0,0.00038356,14]
[400710876,1767786654075,-500.0,0.00038356,14]
[400710878,1767786654084,-500.0,0.00038356,14]
[400710880,1767786654094,-500.0,0.00038356,14]
[400710882,1767786654104,-500.0,0.00038356,14]
[400710883,1767786654114,-500.0,0.00038356,14]
[400710885,1767786654125,-500.0,0.00038356,14]
[400710887,1767786654135,-500.0,0.00038356,14]
[400710890,1767786654145,-500.0,0.00038356,14]
[400710892,1767786654157,-500.0,0.00038356,14]
[400710894,1767786654167,-500.0,0.00038356,14]
[400710896,1767786654177,-500.0,0.00038356,14]
[400710898,1767786654188,-500.0,0.00038356,14]
[400710900,1767786654198,-555.13593866,0.00038356,14]
[400710901,1767786654208,-760.54,0.00038356,14]
[400710904,1767786654219,-500.0,0.00038356,14]
[400710905,1767786654229,-543.00729914,0.00038356,14]
[400710907,1767786654239,-500.0,0.00038356,14]
[400710909,1767786654248,-212.15519181,0.00038356,14]
[400710911,1767786654258,-500.0,0.00038356,14]
[400710913,1767786654270,-500.0,0.00038356,14]
[400710915,1767786654279,-234.24541788,0.00038356,14]
[400710917,1767786654289,-420.78612512,0.00038356,14]
[400710919,1767786654299,-500.0,0.00038356,14]
[400710921,1767786654309,-1421.08,0.00038356,14]
[400710923,1767786654318,-500.0,0.00038356,14]
[400710925,1767786654329,-572.16,0.00038356,14]
[400710928,1767786654339,-509.4398322,0.00038356,14]
[400710929,1767786654349,-500.0,0.00038356,14]
[400710932,1767786654358,-1188.27,0.00038356,14]
[400710934,1767786654368,-500.0,0.00038356,14]
[400710935,1767786654378,-500.0,0.00038356,14]
[400710937,1767786654387,-638.01900718,0.00038356,14]
[400710940,1767786654397,-948.27,0.00038356,14]
[400710942,1767786654406,-538.94459624,0.00038356,14]
[400710944,1767786654417,-500.0,0.00038356,14]
[400710945,1767786654427,-500.0,0.00038356,14]
[400710947,1767786654437,-500.0,0.00038356,14]
[400710949,1767786654447,-500.0,0.00038356,14]
[400710952,1767786654457,-500.0,0.00038356,14]
[400710953,1767786654467,-500.0,0.00038356,14]
[400710956,1767786654477,-500.0,0.00038356,14]
[400710958,1767786654486,-545.78,0.00038356,14]
[400710960,1767786654496,-673.42,0.00038356,14]
[400710962,1767786654506,-500.0,0.00038356,14]
[400710963,1767786654515,-500.0,0.00038356,7]
[400710966,1767786654525,-500.0,0.00038356,14]
[400710968,1767786654539,-304.31052001,0.00038356,14]
[400710970,1767786654549,-500.0,0.00038356,14]
[400710972,1767786654559,-500.0,0.00038356,14]
[400710974,1767786654568,-2149.0,0.00038356,14]
[400710976,1767786654578,-500.0,0.00038356,14]
[400710978,1767786654587,-500.0,0.00038356,14]
[400710980,1767786654597,-500.0,0.00038356,14]
[400710982,1767786654607,-500.0,0.00038356,14]
[400710984,1767786654616,-500.0,0.00038356,14]
[400710986,1767786654626,-500.0,0.00038356,14]
[400710988,1767786654637,-500.0,0.00038356,14]
[400710990,1767786654647,-500.0,0.00038356,14]
[400710992,1767786654656,-924.78,0.00038356,14]
[400710994,1767786654666,-500.0,0.00038356,14]
[400710996,1767786654675,-500.0,0.00038356,14]
[400710998,1767786654684,-650.91,0.00038356,14]
[400711000,1767786654694,-500.0,0.00038356,14]
[400711002,1767786654703,-536.14182895,0.00038356,14]
[400711004,1767786654712,-500.0,0.00038356,14]
[400711006,1767786654723,-500.0,0.00038356,14]
[400711008,1767786654732,-500.0,0.00038356,14]
[400711010,1767786654742,-500.0,0.00038356,14]
[400711012,1767786654751,-1042.57,0.00038356,14]
[400711013,1767786654760,-500.0,0.00038356,14]
[400711016,1767786654771,-500.0,0.00038356,14]
[400711017,1767786654780,-500.0,0.00038356,14]
[400711019,1767786654789,-500.0,0.00038356,14]
[400711021,1767786654799,-500.0,0.00038356,14]
[400711023,1767786654809,-633.731261,0.00038356,14]
[400711025,1767786654818,-500.0,0.00038356,14]
[400711027,1767786654827,-1928.85,0.00038356,14]
[400711029,1767786654838,-500.0,0.00038356,14]
[400711031,1767786654848,-500.0,0.00038356,14]
[400711034,1767786654859,-641.10097803,0.00038356,14]
[400711036,1767786654869,-500.0,0.00038356,14]
[400711038,1767786654879,-500.0,0.00038356,14]
[400711040,1767786654888,-500.0,0.00038356,14]
[400711042,1767786654897,-500.0,0.00038356,14]
[400711044,1767786654907,-500.0,0.00038356,14]
[400711045,1767786654917,-890.9,0.00038356,14]
[400711048,1767786654927,-500.0,0.00038356,14]
[400711050,1767786654937,-500.0,0.00038356,14]
[400711052,1767786654946,-632.49,0.00038356,14]
[400711054,1767786654956,-500.0,0.00038356,14]
[400711056,1767786654967,-500.0,0.00038356,14]
[400711057,1767786654977,-500.0,0.00038356,14]
[400711059,1767786654987,-500.0,0.00038356,14]
[400711061,1767786654996,-500.0,0.00038356,14]
[400711064,1767786655006,-500.0,0.00038356,14]
[400711066,1767786655016,-500.0,0.00038356,14]
[400711068,1767786655026,-500.0,0.00038356,14]
[400711070,1767786655035,-500.0,0.00038356,14]
[400711072,1767786655045,-500.0,0.00038356,14]
[400711074,1767786655055,-500.0,0.00038356,14]
[400711076,1767786655065,-1274.49,0.00038356,14]
[400711077,1767786655074,-511.51,0.00038356,14]
[400711080,1767786655084,-500.0,0.00038356,14]
[400711082,1767786655094,-257.93035636,0.00038356,14]
[400711084,1767786655104,-500.0,0.00038356,14]
[400711086,1767786655114,-500.0,0.00038356,14]
[400711088,1767786655124,-1765.19,0.00038356,14]
[400711090,1767786655133,-937.67,0.00038356,14]
[400711092,1767786655144,-876.82,0.00038356,14]
[400711094,1767786655153,-500.0,0.00038356,2]
[400711096,1767786655163,-500.0,0.00038356,14]
[400711097,1767786655172,-500.0,0.00038356,14]
[400711100,1767786655182,-500.0,0.00038356,14]
[400711102,1767786655196,-500.0,0.00038356,14]
[400711104,1767786655205,-500.0,0.00038356,14]
[400711106,1767786655215,-500.0,0.00038356,14]
[400711108,1767786655223,-500.0,0.00038356,14]
[400711110,1767786655235,-631.73427095,0.00038356,14]
[400711112,1767786655245,-500.0,0.00038356,14]
[400711113,1767786655254,-500.0,0.00038356,14]
[400711115,1767786655267,-500.0,0.00038356,14]
[400711118,1767786655277,-500.0,0.00038356,14]
[400711120,1767786655287,-500.0,0.00038356,14]
[400711121,1767786655295,-500.0,0.00038356,14]
[400711123,1767786655305,-500.0,0.00038356,14]
[400711124,1767786655314,-500.0,0.00038356,14]
[400711125,1767786655323,-856.06,0.00038356,2]
[400711126,1767786655332,-500.0,0.00038356,14]
[400711127,1767786655341,-500.0,0.00038356,14]
[400711128,1767786655351,-500.0,0.00038356,14]
[400711129,1767786655361,-572.62,0.00038356,14]
[400711130,1767786655370,-500.0,0.00038356,14]
[400711131,1767786655379,-500.0,0.00038356,14]
[400711132,1767786655388,-518.03815747,0.00038356,14]
[400711133,1767786655398,-500.0,0.00038356,14]
[400711134,1767786655407,-500.0,0.00038356,14]
[400711136,1767786655417,-500.0,0.00038356,14]
[400711138,1767786655427,-500.0,0.00038356,14]
[400711140,1767786655437,-577.65302238,0.00038356,14]
[400711142,1767786655447,-521.41752696,0.00038356,14]
[400711144,1767786655456,-500.0,0.00038356,14]
[400711146,1767786655466,-647.93075554,0.00038356,14]
[400711148,1767786655475,-500.0,0.00038356,14]
[400711150,1767786655485,-535.10637465,0.00038356,14]
[400711152,1767786655494,-500.0,0.00038356,14]
[400711154,1767786655503,-500.0,0.00038356,14]
[400711156,1767786655512,-500.0,0.00038356,14]
[400711158,1767786655522,-500.0,0.00038356,14]
[400711160,1767786655531,-500.0,0.00038356,14]
[400711162,1767786655541,-538.47209136,0.00038356,14]
[400711164,1767786655550,-500.0,0.00038356,14]
[400711166,1767786655559,-500.0,0.00038356,14]
[400711168,1767786655568,-641.18,0.00038356,14]
[400711170,1767786655577,-500.0,0.00038356,14]
[400711172,1767786655587,-500.0,0.00038356,14]
[400711174,1767786655596,-500.0,0.00038356,14]
[400711176,1767786655605,-500.0,0.00038356,14]
[400711178,1767786655615,-500.0,0.00038356,14]
[400711180,1767786655625,-500.0,0.00038356,14]
[400711182,1767786655634,-500.0,0.00038356,14]
[400711184,1767786655643,-1278.39,0.00038356,14]
[400711186,1767786655653,-981.11,0.00038356,14]
[400711188,1767786655662,-500.0,0.00038356,14]
[400711189,1767786655672,-500.0,0.00038356,14]
[400711191,1767786655681,-500.0,0.00038356,14]
[400711193,1767786655691,-561.82,0.00038356,5]
[400711195,1767786655700,-530.45911547,0.00038356,14]
[400711197,1767786655709,-382.51729372,0.00038356,14]
[400711199,1767786655718,-699.14,0.00038356,14]
[400711201,1767786655728,-500.0,0.00038356,14]
[400711203,1767786655737,-500.0,0.00038356,14]
[400711205,1767786655747,-500.0,0.00038356,14]
[400711207,1767786655757,-1087.47,0.00038356,14]
[400711209,1767786655770,-500.0,0.00038356,14]
[400711211,1767786655779,-500.0,0.00038356,14]
[400711213,1767786655789,-500.0,0.00038356,14]
[400711215,1767786655798,-500.0,0.00038356,14]
[400711217,1767786655808,-500.0,0.00038356,14]
[400711219,1767786655817,-500.0,0.00038356,14]
[400711221,1767786655827,-1496.42,0.00038356,14]
[400711223,1767786655836,-1400.74,0.00038356,14]
[400711225,1767786655845,-500.0,0.00038356,14]
[400711227,1767786655854,-500.0,0.00038356,14]
[400711229,1767786655864,-500.0,0.00038356,14]
[400711231,1767786655873,-500.0,0.00038356,14]
[400711233,1767786655882,-500.0,0.00038356,14]
[400711235,1767786655892,-500.0,0.00038356,14]
[400711237,1767786655902,-500.0,0.00038356,14]
[400711239,1767786655911,-1045.17,0.00038356,14]
[400711240,1767786655921,-500.0,0.00038356,14]
[400711242,1767786655930,-500.0,0.00038356,14]
[400711244,1767786655940,-523.15515749,0.00038356,14]
[400711246,1767786655950,-500.0,0.00038356,14]
[400711248,1767786655959,-500.0,0.00038356,14]
[400711251,1767786655969,-500.0,0.00038356,14]
[400711253,1767786655979,-500.0,0.00038356,14]
[400711255,1767786655988,-676.99,0.00038356,14]
[400711257,1767786655998,-500.0,0.00038356,14]
[400711259,1767786656007,-500.0,0.00038356,14]
[400711260,1767786656017,-500.0,0.00038356,14]
[400711262,1767786656026,-500.0,0.00038356,14]
[400711264,1767786656036,-500.0,0.00038356,14]
[400711266,1767786656046,-500.0,0.00038356,14]
[400711269,1767786656062,-531.15,0.00038356,14]
[400711270,1767786656072,-288.45666647,0.00038356,14]
[400711272,1767786656081,-500.0,0.00038356,14]
[400711274,1767786656091,-500.0,0.00038356,14]